[Event "*** SCC Grand Prix: Titled Tuesday Blitz"]
[Site "Chess.com"]
[Date "2020.10.06"]
[Round "7"]
[White "Margency"]
[Black "LiamVrolijk"]
[Result "0-1"]
[WhiteElo "2658"]
[BlackElo "2826"]
[TimeControl "180+1"]
[EndTime "11:19:48 PDT"]
[Termination "LiamVrolijk won by resignation"]

1. e4 {[%clk 0:03:00.9]} 1... g6 {[%clk 0:02:57.8]} 2. d4 {[%clk 0:03:00.9]}
2... Bg7 {[%clk 0:02:58.2]} 3. Nc3 {[%clk 0:03:01.6]} 3... d6 {[%clk 0:02:58.5]}
4. Be3 {[%clk 0:03:02.1]} 4... a6 {[%clk 0:02:58.9]} 5. f4 {[%clk 0:03:02.7]}
5... b5 {[%clk 0:02:58.4]} 6. Bd3 {[%clk 0:03:03.3]} 6... Bb7 {[%clk 0:02:57.9]}
7. Nf3 {[%clk 0:03:03.9]} 7... Nd7 {[%clk 0:02:53.9]} 8. e5 {[%clk 0:03:04.1]}
8... Nh6 {[%clk 0:02:48.4]} 9. Qe2 {[%clk 0:03:04]} 9... O-O {[%clk 0:02:47.5]}
10. O-O-O {[%clk 0:03:03.2]} 10... c5 {[%clk 0:02:45.2]} 11. Be4 {[%clk
0:02:56.9]} 11... Bxe4 {[%clk 0:02:40.2]} 12. Nxe4 {[%clk 0:02:56.8]} 12... cxd4
{[%clk 0:02:32.1]} 13. Bxd4 {[%clk 0:02:56.2]} 13... Nf5 {[%clk 0:02:23.9]} 14.
exd6 {[%clk 0:02:41.3]} 14... Nxd4 {[%clk 0:02:23.8]} 15. Nxd4 {[%clk
0:02:41.5]} 15... exd6 {[%clk 0:02:23.8]} 16. Nc6 {[%clk 0:02:19.9]} 16... Qc7
{[%clk 0:02:14]} 17. Ne7+ {[%clk 0:02:19.1]} 17... Kh8 {[%clk 0:02:13.5]} 18.
Nd5 {[%clk 0:02:19.6]} 18... Qa5 {[%clk 0:02:11.6]} 19. Kb1 {[%clk 0:02:18.6]}
19... Nc5 {[%clk 0:01:49.2]} 20. Nxd6 {[%clk 0:02:02.1]} 20... Rad8 {[%clk
0:01:49.2]} 21. Qe7 {[%clk 0:01:51.7]} 21... Rd7 {[%clk 0:01:44.1]} 22. Nxf7+
{[%clk 0:01:48]} 22... Kg8 {[%clk 0:01:38.5]} 23. Qxc5 {[%clk 0:01:39.5]} 23...
Rdxf7 {[%clk 0:01:38.7]} 24. g3 {[%clk 0:01:29.6]} 24... Re8 {[%clk 0:01:29.3]}
25. c3 {[%clk 0:01:13.1]} 25... Qd8 {[%clk 0:01:13.3]} 26. Rhe1 {[%clk 0:01:08]}
26... Rxe1 {[%clk 0:01:13.3]} 27. Rxe1 {[%clk 0:01:08]} 27... Rd7 {[%clk
0:01:14.2]} 28. Rd1 {[%clk 0:00:52.8]} 28... Kh8 {[%clk 0:01:12.1]} 29. a3
{[%clk 0:00:47.7]} 29... h6 {[%clk 0:01:06.2]} 30. h4 {[%clk 0:00:47.2]} 30...
Qe8 {[%clk 0:00:59.3]} 31. Qc6 {[%clk 0:00:40.4]} 31... Qe4+ {[%clk 0:00:55.6]}
32. Ka1 {[%clk 0:00:38.9]} 32... Rd8 {[%clk 0:00:56.5]} 33. Qxa6 {[%clk
0:00:30.9]} 33... Qf3 {[%clk 0:00:43.8]} 34. Rd2 {[%clk 0:00:30.3]} 34... Qf1+
{[%clk 0:00:38.4]} 35. Ka2 {[%clk 0:00:29.9]} 35... Qc4+ {[%clk 0:00:39]} 36.
Kb1 {[%clk 0:00:26.4]} 36... Qe4+ {[%clk 0:00:33]} 37. Kc1 {[%clk 0:00:24.3]}
37... Qe1+ {[%clk 0:00:32.1]} 38. Rd1 {[%clk 0:00:20.7]} 38... Qxg3 {[%clk
0:00:32.3]} 39. Qxb5 {[%clk 0:00:20.5]} 39... Qxh4 {[%clk 0:00:32.6]} 40. Qd3
{[%clk 0:00:20.4]} 40... Qh5 {[%clk 0:00:30.6]} 41. a4 {[%clk 0:00:19.9]} 41...
Ra8 {[%clk 0:00:27]} 42. b3 {[%clk 0:00:18.7]} 42... Qh2 {[%clk 0:00:25.5]} 43.
Rd2 {[%clk 0:00:18.7]} 43... Qg1+ {[%clk 0:00:24.3]} 44. Kb2 {[%clk 0:00:19.2]}
44... Re8 {[%clk 0:00:19.7]} 45. a5 {[%clk 0:00:18.7]} 45... Re1 {[%clk
0:00:19.8]} 46. Ka3 {[%clk 0:00:18.8]} 46... Bf8+ {[%clk 0:00:14.6]} 47. Ka4
{[%clk 0:00:17.2]} 47... Ra1+ {[%clk 0:00:10.5]} 48. Kb5 {[%clk 0:00:16.5]}
48... Qc5+ {[%clk 0:00:11.1]} 49. Ka6 {[%clk 0:00:16.9]} 49... Rxa5+ {[%clk
0:00:10.7]} 0-1

[Event "*** SCC Grand Prix: Titled Tuesday Blitz"]
[Site "Chess.com"]
[Date "2020.10.06"]
[Round "7"]
[White "KatarinaOstojic"]
[Black "Jabberwockiez"]
[Result "1/2-1/2"]
[WhiteElo "2352"]
[BlackElo "2239"]
[TimeControl "180+1"]
[EndTime "11:19:48 PDT"]
[Termination "Game drawn - insufficient material"]

1. d4 {[%clk 0:03:00.9]} 1... Nf6 {[%clk 0:02:59.7]} 2. Nf3 {[%clk 0:03:00.2]}
2... e6 {[%clk 0:03:00.1]} 3. c4 {[%clk 0:02:56.5]} 3... Bb4+ {[%clk 0:03:00.5]}
4. Bd2 {[%clk 0:02:56]} 4... a5 {[%clk 0:03:01]} 5. a3 {[%clk 0:02:55.7]} 5...
Bxd2+ {[%clk 0:03:00]} 6. Nbxd2 {[%clk 0:02:56.6]} 6... O-O {[%clk 0:03:00.3]}
7. e3 {[%clk 0:02:56.9]} 7... d5 {[%clk 0:03:00.9]} 8. Bd3 {[%clk 0:02:56.4]}
8... dxc4 {[%clk 0:03:00]} 9. Nxc4 {[%clk 0:02:56.4]} 9... c6 {[%clk 0:03:00.6]}
10. O-O {[%clk 0:02:53.4]} 10... b5 {[%clk 0:03:00.7]} 11. Nce5 {[%clk
0:02:48.1]} 11... Bb7 {[%clk 0:03:01.1]} 12. Rc1 {[%clk 0:02:48.7]} 12... Qb6
{[%clk 0:02:48.8]} 13. Qc2 {[%clk 0:02:47.7]} 13... h6 {[%clk 0:02:42.5]} 14.
Rfd1 {[%clk 0:02:43.1]} 14... Rc8 {[%clk 0:02:38.8]} 15. h3 {[%clk 0:02:41.9]}
15... Nbd7 {[%clk 0:02:38.3]} 16. Bh7+ {[%clk 0:02:23.7]} 16... Kf8 {[%clk
0:02:27]} 17. Nxd7+ {[%clk 0:02:23.1]} 17... Nxd7 {[%clk 0:02:27.5]} 18. Be4
{[%clk 0:02:16.9]} 18... Nf6 {[%clk 0:02:04.4]} 19. Ne5 {[%clk 0:02:14.3]} 19...
Rc7 {[%clk 0:01:45.4]} 20. Bf3 {[%clk 0:02:09.9]} 20... Rac8 {[%clk 0:01:43.2]}
21. Nd3 {[%clk 0:02:07.6]} 21... b4 {[%clk 0:01:21]} 22. axb4 {[%clk 0:02:02.4]}
22... axb4 {[%clk 0:01:21.9]} 23. Qc5+ {[%clk 0:02:02.9]} 23... Qxc5 {[%clk
0:01:21.7]} 24. Rxc5 {[%clk 0:02:03.1]} 24... b3 {[%clk 0:01:13.7]} 25. Nc1
{[%clk 0:01:59.2]} 25... Rb8 {[%clk 0:00:59.2]} 26. Nxb3 {[%clk 0:01:58.4]}
26... Ba8 {[%clk 0:00:59.3]} 27. Na5 {[%clk 0:01:57.4]} 27... Rxb2 {[%clk
0:00:57.6]} 28. Bxc6 {[%clk 0:01:51]} 28... Bxc6 {[%clk 0:00:56.5]} 29. Rxc6
{[%clk 0:01:50.8]} 29... Rxc6 {[%clk 0:00:52.5]} 30. Nxc6 {[%clk 0:01:51.7]}
30... Ne4 {[%clk 0:00:53.1]} 31. Ra1 {[%clk 0:01:41]} 31... g5 {[%clk
0:00:51.3]} 32. f3 {[%clk 0:01:38]} 32... Ng3 {[%clk 0:00:42.1]} 33. Ne5 {[%clk
0:01:37.4]} 33... Rb7 {[%clk 0:00:33.3]} 34. Kf2 {[%clk 0:01:36.2]} 34... Nf5
{[%clk 0:00:32.7]} 35. g4 {[%clk 0:01:35.6]} 35... Rb2+ {[%clk 0:00:32.1]} 36.
Kg1 {[%clk 0:01:33]} 36... Nxe3 {[%clk 0:00:27.6]} 37. Ra8+ {[%clk 0:01:30.2]}
37... Kg7 {[%clk 0:00:26.6]} 38. Ra7 {[%clk 0:01:31.1]} 38... Rd2 {[%clk
0:00:16.3]} 39. Rxf7+ {[%clk 0:01:29.9]} 39... Kg8 {[%clk 0:00:16.7]} 40. Rf6
{[%clk 0:01:24.1]} 40... Rxd4 {[%clk 0:00:14.8]} 41. Rxe6 {[%clk 0:01:20.5]}
41... Rd1+ {[%clk 0:00:13.2]} 42. Kf2 {[%clk 0:01:18.8]} 42... Nd5 {[%clk
0:00:12.9]} 43. Rxh6 {[%clk 0:01:16.3]} 43... Nf4 {[%clk 0:00:12.3]} 44. h4
{[%clk 0:01:12.1]} 44... Rd2+ {[%clk 0:00:12.4]} 45. Ke3 {[%clk 0:01:08.5]}
45... Re2+ {[%clk 0:00:12.3]} 46. Kd4 {[%clk 0:01:08.2]} 46... gxh4 {[%clk
0:00:10.5]} 47. Rxh4 {[%clk 0:01:01.9]} 47... Rxe5 {[%clk 0:00:10.4]} 48. Kxe5
{[%clk 0:01:00.9]} 48... Ng6+ {[%clk 0:00:10.6]} 49. Ke4 {[%clk 0:00:59.9]}
49... Nxh4 {[%clk 0:00:11.5]} 50. f4 {[%clk 0:01:00.7]} 50... Kg7 {[%clk
0:00:11.6]} 51. f5 {[%clk 0:01:01]} 51... Kf6 {[%clk 0:00:11.6]} 52. Kf4 {[%clk
0:01:01.1]} 52... Ng2+ {[%clk 0:00:12]} 53. Kg3 {[%clk 0:01:00.2]} 53... Ne3
{[%clk 0:00:11.6]} 54. Kf3 {[%clk 0:01:00.3]} 54... Nd5 {[%clk 0:00:11.3]} 55.
Ke4 {[%clk 0:00:57.8]} 55... Ne7 {[%clk 0:00:10.4]} 56. Kf4 {[%clk 0:00:56.8]}
56... Nd5+ {[%clk 0:00:10.6]} 57. Ke4 {[%clk 0:00:56.3]} 57... Ne7 {[%clk
0:00:10.5]} 58. g5+ {[%clk 0:00:56.6]} 58... Kxg5 {[%clk 0:00:10.4]} 59. f6
{[%clk 0:00:57]} 59... Kxf6 {[%clk 0:00:09.8]} 1/2-1/2

[Event "*** SCC Grand Prix: Titled Tuesday Blitz"]
[Site "Chess.com"]
[Date "2020.10.06"]
[Round "7"]
[White "Susal_De_Silva"]
[Black "AndrewMaco"]
[Result "1/2-1/2"]
[WhiteElo "2477"]
[BlackElo "2628"]
[TimeControl "180+1"]
[EndTime "11:19:49 PDT"]
[Termination "Game drawn - insufficient material"]

1. e4 {[%clk 0:03:00.9]} 1... c6 {[%clk 0:02:52.4]} 2. d4 {[%clk 0:02:59.5]}
2... d5 {[%clk 0:02:53.3]} 3. Nc3 {[%clk 0:03:00.4]} 3... dxe4 {[%clk
0:02:53.3]} 4. Nxe4 {[%clk 0:03:01.3]} 4... Nf6 {[%clk 0:02:54.2]} 5. Nxf6+
{[%clk 0:03:01.6]} 5... exf6 {[%clk 0:02:55.1]} 6. c3 {[%clk 0:03:02]} 6... Bd6
{[%clk 0:02:55.2]} 7. Bd3 {[%clk 0:03:02.3]} 7... O-O {[%clk 0:02:55.9]} 8. Ne2
{[%clk 0:03:02.8]} 8... Re8 {[%clk 0:02:54.9]} 9. Qc2 {[%clk 0:03:03.7]} 9... h5
{[%clk 0:02:54.5]} 10. O-O {[%clk 0:02:59.9]} 10... h4 {[%clk 0:02:54.4]} 11. h3
{[%clk 0:03:00.1]} 11... Nd7 {[%clk 0:02:54.8]} 12. Be3 {[%clk 0:02:59.6]} 12...
Nf8 {[%clk 0:02:52.6]} 13. Rae1 {[%clk 0:02:57.5]} 13... Bb8 {[%clk 0:02:51]}
14. Nc1 {[%clk 0:02:25.2]} 14... Qc7 {[%clk 0:02:47.2]} 15. f4 {[%clk
0:02:24.3]} 15... Be6 {[%clk 0:02:36.8]} 16. Bf5 {[%clk 0:02:21.1]} 16... Qd7
{[%clk 0:02:29.2]} 17. Bxe6 {[%clk 0:02:19]} 17... Rxe6 {[%clk 0:02:26.9]} 18.
Qf5 {[%clk 0:02:07.3]} 18... Bc7 {[%clk 0:02:26.2]} 19. Qg4 {[%clk 0:02:04.9]}
19... Rae8 {[%clk 0:02:25.7]} 20. Bd2 {[%clk 0:02:03]} 20... Rxe1 {[%clk
0:02:20.6]} 21. Rxe1 {[%clk 0:01:55.8]} 21... Rxe1+ {[%clk 0:02:19.2]} 22. Bxe1
{[%clk 0:01:56]} 22... Qxg4 {[%clk 0:02:18.8]} 23. hxg4 {[%clk 0:01:56.9]} 23...
Bxf4 {[%clk 0:02:19.1]} 24. Nd3 {[%clk 0:01:56.5]} 24... Be3+ {[%clk 0:02:18.4]}
25. Kf1 {[%clk 0:01:56]} 25... Ng6 {[%clk 0:02:10.4]} 26. Ke2 {[%clk 0:01:52.3]}
26... Bg5 {[%clk 0:02:09.9]} 27. Kf3 {[%clk 0:01:49.6]} 27... Kf8 {[%clk
0:02:08.6]} 28. Nc5 {[%clk 0:01:46.3]} 28... b6 {[%clk 0:02:08.3]} 29. Ne4
{[%clk 0:01:43.2]} 29... Ke7 {[%clk 0:02:07.5]} 30. c4 {[%clk 0:01:42.5]} 30...
Ke6 {[%clk 0:02:06.6]} 31. Bb4 {[%clk 0:01:32.2]} 31... Bc1 {[%clk 0:02:01.3]}
32. Ba3 {[%clk 0:01:27.2]} 32... Ne7 {[%clk 0:01:59.1]} 33. Nc3 {[%clk
0:01:25.1]} 33... g6 {[%clk 0:01:53.3]} 34. Ne2 {[%clk 0:01:23.7]} 34... Bd2
{[%clk 0:01:53.3]} 35. b3 {[%clk 0:01:21.3]} 35... f5 {[%clk 0:01:50.1]} 36. Bb2
{[%clk 0:01:11.7]} 36... fxg4+ {[%clk 0:01:46.6]} 37. Kxg4 {[%clk 0:01:12.6]}
37... g5 {[%clk 0:01:47.1]} 38. Kf3 {[%clk 0:01:03.3]} 38... f5 {[%clk
0:01:45.7]} 39. Ng1 {[%clk 0:00:53.6]} 39... g4+ {[%clk 0:01:44.8]} 40. Ke2
{[%clk 0:00:53.9]} 40... Bg5 {[%clk 0:01:44.8]} 41. Bc3 {[%clk 0:00:47.8]} 41...
Ng6 {[%clk 0:01:44.4]} 42. Kf1 {[%clk 0:00:45.2]} 42... Be3 {[%clk 0:01:38.1]}
43. Ne2 {[%clk 0:00:41.3]} 43... f4 {[%clk 0:01:34.1]} 44. Be1 {[%clk 0:00:37]}
44... Kf5 {[%clk 0:01:33.6]} 45. d5 {[%clk 0:00:27.3]} 45... cxd5 {[%clk
0:01:32.4]} 46. cxd5 {[%clk 0:00:28.2]} 46... Ke5 {[%clk 0:01:32.9]} 47. Nc3
{[%clk 0:00:28]} 47... h3 {[%clk 0:01:30.5]} 48. gxh3 {[%clk 0:00:27.6]} 48...
gxh3 {[%clk 0:01:31.4]} 49. Nb5 {[%clk 0:00:11]} 49... Kxd5 {[%clk 0:01:30.3]}
50. Nxa7 {[%clk 0:00:10.3]} 50... f3 {[%clk 0:01:30.8]} 51. Bg3 {[%clk
0:00:09.4]} 51... Ne5 {[%clk 0:01:25.4]} 52. Nb5 {[%clk 0:00:07.7]} 52... Nc6
{[%clk 0:01:22.1]} 53. Nc3+ {[%clk 0:00:07.5]} 53... Kd4 {[%clk 0:01:21.7]} 54.
Nd1 {[%clk 0:00:07.8]} 54... b5 {[%clk 0:01:18]} 55. Nf2 {[%clk 0:00:07.4]}
55... Bxf2 {[%clk 0:01:14.5]} 56. Kxf2 {[%clk 0:00:08.3]} 56... Ke4 {[%clk
0:01:14.2]} 57. a4 {[%clk 0:00:08.6]} 57... bxa4 {[%clk 0:01:13.4]} 58. bxa4
{[%clk 0:00:09.5]} 58... Nd4 {[%clk 0:01:09.7]} 59. a5 {[%clk 0:00:08.5]} 59...
Nb5 {[%clk 0:01:04.6]} 60. a6 {[%clk 0:00:08.6]} 60... Kd5 {[%clk 0:01:00.1]}
61. Kxf3 {[%clk 0:00:06.8]} 61... Kc6 {[%clk 0:01:00.6]} 62. Kg4 {[%clk
0:00:06.7]} 62... h2 {[%clk 0:01:00.3]} 63. Bxh2 {[%clk 0:00:06.6]} 63... Kb6
{[%clk 0:01:01.2]} 64. a7 {[%clk 0:00:06.9]} 64... Nxa7 {[%clk 0:01:01.2]}
1/2-1/2

[Event "*** SCC Grand Prix: Titled Tuesday Blitz"]
[Site "Chess.com"]
[Date "2020.10.06"]
[Round "7"]
[White "Margarita2907"]
[Black "Happy1712Drummer"]
[Result "0-1"]
[WhiteElo "2186"]
[BlackElo "2389"]
[TimeControl "180+1"]
[EndTime "11:19:52 PDT"]
[Termination "Happy1712Drummer won on time"]

1. e4 {[%clk 0:03:00.9]} 1... c6 {[%clk 0:03:00.7]} 2. d4 {[%clk 0:03:00]} 2...
d5 {[%clk 0:03:01.6]} 3. e5 {[%clk 0:02:59.5]} 3... Bf5 {[%clk 0:03:00.5]} 4.
Nd2 {[%clk 0:02:59.4]} 4... e6 {[%clk 0:02:57.5]} 5. Nb3 {[%clk 0:02:59.1]} 5...
c5 {[%clk 0:02:52.3]} 6. dxc5 {[%clk 0:02:51.2]} 6... Nc6 {[%clk 0:02:50.7]} 7.
Nf3 {[%clk 0:02:49]} 7... Bg4 {[%clk 0:02:48.5]} 8. Bf4 {[%clk 0:02:45.2]} 8...
Nge7 {[%clk 0:02:47]} 9. h3 {[%clk 0:02:32.7]} 9... Bh5 {[%clk 0:02:44.9]} 10.
Bd3 {[%clk 0:02:22]} 10... Ng6 {[%clk 0:02:38]} 11. Bxg6 {[%clk 0:02:18.2]}
11... Bxg6 {[%clk 0:02:37.3]} 12. O-O {[%clk 0:02:11]} 12... Rc8 {[%clk
0:02:30.9]} 13. Re1 {[%clk 0:02:08.8]} 13... Nb4 {[%clk 0:02:21.5]} 14. Nfd4
{[%clk 0:02:03.8]} 14... Bxc5 {[%clk 0:02:17.3]} 15. Nxc5 {[%clk 0:02:01.5]}
15... Rxc5 {[%clk 0:02:17.7]} 16. Re2 {[%clk 0:01:55.4]} 16... Qc8 {[%clk
0:02:02.3]} 17. c3 {[%clk 0:01:46.7]} 17... Nd3 {[%clk 0:01:46.8]} 18. Bg3
{[%clk 0:01:32.3]} 18... b6 {[%clk 0:01:37.1]} 19. Rd2 {[%clk 0:01:22.9]} 19...
Qa6 {[%clk 0:01:36.2]} 20. Nb3 {[%clk 0:01:08.7]} 20... Rc7 {[%clk 0:01:28]} 21.
Nc1 {[%clk 0:01:05.8]} 21... Nxc1 {[%clk 0:01:24.4]} 22. Qxc1 {[%clk 0:01:04.6]}
22... O-O {[%clk 0:01:25.3]} 23. Qe1 {[%clk 0:01:00.8]} 23... Rfc8 {[%clk
0:01:17.4]} 24. Rd4 {[%clk 0:00:57.3]} 24... Rc4 {[%clk 0:01:16.9]} 25. Qe3
{[%clk 0:00:54]} 25... Rxd4 {[%clk 0:01:12.8]} 26. cxd4 {[%clk 0:00:52.1]} 26...
Qc4 {[%clk 0:01:09.5]} 27. b3 {[%clk 0:00:45.6]} 27... Qc2 {[%clk 0:01:01.4]}
28. Bf4 {[%clk 0:00:40.9]} 28... Rc3 {[%clk 0:00:57.8]} 29. Qd2 {[%clk 0:00:34]}
29... h6 {[%clk 0:00:50]} 30. Qxc2 {[%clk 0:00:29.3]} 30... Rxc2 {[%clk
0:00:50.9]} 31. Be3 {[%clk 0:00:29.1]} 31... Be4 {[%clk 0:00:46.1]} 32. g3
{[%clk 0:00:26.9]} 32... g5 {[%clk 0:00:40.2]} 33. a4 {[%clk 0:00:18.2]} 33...
Rb2 {[%clk 0:00:37.5]} 34. Rc1 {[%clk 0:00:16.2]} 34... Rxb3 {[%clk 0:00:36.9]}
35. Rc8+ {[%clk 0:00:16.6]} 35... Kh7 {[%clk 0:00:35.9]} 36. Rc7 {[%clk
0:00:13.6]} 36... Kg6 {[%clk 0:00:35.6]} 37. Kh2 {[%clk 0:00:10.6]} 37... a5
{[%clk 0:00:32.7]} 38. g4 {[%clk 0:00:06.7]} 38... Rb4 {[%clk 0:00:29.8]} 39.
Rb7 {[%clk 0:00:05.6]} 39... Rxa4 {[%clk 0:00:29.1]} 40. Rxb6 {[%clk 0:00:05]}
40... Ra1 {[%clk 0:00:29.4]} 41. Ra6 {[%clk 0:00:03.7]} 41... Rh1+ {[%clk
0:00:19.6]} 42. Kg3 {[%clk 0:00:03.6]} 42... Rg1+ {[%clk 0:00:20.1]} 43. Kh2
{[%clk 0:00:03.2]} 43... Rg2+ {[%clk 0:00:20.5]} 44. Kh1 {[%clk 0:00:02.5]}
44... Rxg4+ {[%clk 0:00:20.2]} 45. Kh2 {[%clk 0:00:01.6]} 45... Rg2+ {[%clk
0:00:20.1]} 46. Kh1 {[%clk 0:00:01.1]} 46... Rxf2+ {[%clk 0:00:20.3]} 0-1

[Event "*** SCC Grand Prix: Titled Tuesday Blitz"]
[Site "Chess.com"]
[Date "2020.10.06"]
[Round "7"]
[White "Fins0905"]
[Black "chito89"]
[Result "0-1"]
[WhiteElo "2645"]
[BlackElo "2823"]
[TimeControl "180+1"]
[EndTime "11:19:59 PDT"]
[Termination "chito89 won by resignation"]

1. e4 {[%clk 0:03:00.9]} 1... e5 {[%clk 0:02:56]} 2. Nf3 {[%clk 0:03:00.4]} 2...
Nc6 {[%clk 0:02:56.7]} 3. Bb5 {[%clk 0:02:59.6]} 3... a6 {[%clk 0:02:57.1]} 4.
Bxc6 {[%clk 0:02:59.5]} 4... dxc6 {[%clk 0:02:56.6]} 5. O-O {[%clk 0:02:59.7]}
5... Bd6 {[%clk 0:02:50.8]} 6. d4 {[%clk 0:02:55.8]} 6... exd4 {[%clk
0:02:51.7]} 7. Qxd4 {[%clk 0:02:51.6]} 7... f6 {[%clk 0:02:51.2]} 8. Be3 {[%clk
0:02:50.1]} 8... Be6 {[%clk 0:02:41.6]} 9. Nbd2 {[%clk 0:02:48.3]} 9... c5
{[%clk 0:02:27.7]} 10. Qc3 {[%clk 0:02:44]} 10... Qe7 {[%clk 0:02:04.9]} 11. Nc4
{[%clk 0:02:27.2]} 11... Bxc4 {[%clk 0:01:37.5]} 12. Qxc4 {[%clk 0:02:28.1]}
12... O-O-O {[%clk 0:01:38.2]} 13. Nd2 {[%clk 0:02:07.1]} 13... Nh6 {[%clk
0:01:34.2]} 14. h3 {[%clk 0:01:30.8]} 14... Nf7 {[%clk 0:01:30.9]} 15. Nb3
{[%clk 0:01:21.6]} 15... Ne5 {[%clk 0:01:25.2]} 16. Qe2 {[%clk 0:01:21.2]} 16...
Rhe8 {[%clk 0:01:22.1]} 17. Rad1 {[%clk 0:01:14.3]} 17... Ng6 {[%clk 0:01:11.2]}
18. f3 {[%clk 0:01:05.9]} 18... Qe5 {[%clk 0:01:10.1]} 19. g4 {[%clk 0:00:53.3]}
19... Nh4 {[%clk 0:01:09.3]} 20. Qf2 {[%clk 0:00:46.4]} 20... Nxf3+ {[%clk
0:01:08.9]} 21. Kh1 {[%clk 0:00:43.3]} 21... Qxe4 {[%clk 0:00:40.6]} 22. Qg2
{[%clk 0:00:24.5]} 22... Qxe3 {[%clk 0:00:25.8]} 23. Rxf3 {[%clk 0:00:24.9]}
23... Qe4 {[%clk 0:00:26.2]} 24. Rdf1 {[%clk 0:00:20.1]} 24... c4 {[%clk
0:00:21.4]} 25. Nd2 {[%clk 0:00:20]} 25... Qxc2 {[%clk 0:00:21.5]} 26. Rc3
{[%clk 0:00:20]} 26... Qxb2 {[%clk 0:00:21.8]} 27. Rxc4 {[%clk 0:00:19.2]} 27...
Be5 {[%clk 0:00:18.4]} 28. Rf2 {[%clk 0:00:10.7]} 28... Rd6 {[%clk 0:00:07.3]}
29. a3 {[%clk 0:00:09.9]} 29... Red8 {[%clk 0:00:07.7]} 30. Rb4 {[%clk
0:00:10.3]} 30... Qc1+ {[%clk 0:00:05.5]} 31. Nf1 {[%clk 0:00:10.6]} 31... Qc6
{[%clk 0:00:04.1]} 32. Rf3 {[%clk 0:00:08.5]} 32... Rd1 {[%clk 0:00:03.9]} 33.
Qe2 {[%clk 0:00:07]} 33... R8d2 {[%clk 0:00:03.4]} 34. Qe4 {[%clk 0:00:03.2]}
34... Qxe4 {[%clk 0:00:02.9]} 35. Rxe4 {[%clk 0:00:04.1]} 35... Ra2 {[%clk
0:00:03.5]} 36. Kg1 {[%clk 0:00:04.8]} 36... Raa1 {[%clk 0:00:04.3]} 37. g5
{[%clk 0:00:05.5]} 37... c5 {[%clk 0:00:03.6]} 38. Kg2 {[%clk 0:00:06.2]} 38...
Ra2+ {[%clk 0:00:03.3]} 39. Kg1 {[%clk 0:00:06.5]} 39... Bd4+ {[%clk 0:00:03.4]}
40. Kh1 {[%clk 0:00:06.6]} 40... Rf2 {[%clk 0:00:03.7]} 41. Rxf2 {[%clk
0:00:06.8]} 41... Bxf2 {[%clk 0:00:04.6]} 42. Kg2 {[%clk 0:00:07.7]} 42... Bd4
{[%clk 0:00:05.1]} 43. Re8+ {[%clk 0:00:07.2]} 43... Kd7 {[%clk 0:00:05.1]} 44.
Rh8 {[%clk 0:00:07.5]} 44... fxg5 {[%clk 0:00:05.5]} 45. Rxh7 {[%clk 0:00:07.9]}
45... c4 {[%clk 0:00:06]} 46. Ng3 {[%clk 0:00:08]} 46... c3 {[%clk 0:00:06.3]}
47. Ne2 {[%clk 0:00:07.7]} 47... c2 {[%clk 0:00:05.5]} 48. Kf3 {[%clk
0:00:08.3]} 48... c1=Q {[%clk 0:00:05]} 49. Nxc1 {[%clk 0:00:08.4]} 49... Rxc1
{[%clk 0:00:05.9]} 50. Ke4 {[%clk 0:00:07.8]} 50... Bf6 {[%clk 0:00:06.4]} 0-1

[Event "*** SCC Grand Prix: Titled Tuesday Blitz"]
[Site "Chess.com"]
[Date "2020.10.06"]
[Round "7"]
[White "CzechmVIII"]
[Black "markberk"]
[Result "0-1"]
[WhiteElo "2154"]
[BlackElo "2396"]
[TimeControl "180+1"]
[EndTime "11:19:59 PDT"]
[Termination "markberk won by checkmate"]

1. e4 {[%clk 0:03:00.9]} 1... e5 {[%clk 0:02:57.8]} 2. Nf3 {[%clk 0:03:00.8]}
2... Nc6 {[%clk 0:02:56.6]} 3. Bb5 {[%clk 0:03:00.7]} 3... Bb4 {[%clk
0:02:55.5]} 4. O-O {[%clk 0:02:54.8]} 4... Nge7 {[%clk 0:02:54.5]} 5. Nc3 {[%clk
0:02:48.4]} 5... O-O {[%clk 0:02:52.1]} 6. Nd5 {[%clk 0:02:46.2]} 6... Nxd5
{[%clk 0:02:49.8]} 7. exd5 {[%clk 0:02:46.2]} 7... Ne7 {[%clk 0:02:49.2]} 8.
Nxe5 {[%clk 0:02:36.6]} 8... Nxd5 {[%clk 0:02:47.5]} 9. d4 {[%clk 0:02:32.3]}
9... Be7 {[%clk 0:02:42.4]} 10. Bd3 {[%clk 0:02:15.7]} 10... d6 {[%clk 0:02:38]}
11. Nf3 {[%clk 0:02:12.9]} 11... Bg4 {[%clk 0:02:35.7]} 12. c3 {[%clk
0:02:07.7]} 12... Qd7 {[%clk 0:02:29.9]} 13. h3 {[%clk 0:02:06.7]} 13... Bh5
{[%clk 0:02:27.8]} 14. Be4 {[%clk 0:01:45.3]} 14... c6 {[%clk 0:02:14.5]} 15.
Qc2 {[%clk 0:01:39.5]} 15... Nf6 {[%clk 0:02:10.9]} 16. Bf5 {[%clk 0:01:33]}
16... Qc7 {[%clk 0:02:10.7]} 17. Nh2 {[%clk 0:01:25.9]} 17... Rfe8 {[%clk
0:01:59.3]} 18. Bf4 {[%clk 0:01:25.2]} 18... Bg6 {[%clk 0:01:53.5]} 19. Rfe1
{[%clk 0:01:14.5]} 19... Nd5 {[%clk 0:01:46.1]} 20. Bg3 {[%clk 0:01:09.1]} 20...
Bg5 {[%clk 0:01:41.1]} 21. Bxg6 {[%clk 0:01:04.1]} 21... hxg6 {[%clk 0:01:40.1]}
22. Nf3 {[%clk 0:00:57.6]} 22... Bf4 {[%clk 0:01:39.7]} 23. Bxf4 {[%clk
0:00:48.4]} 23... Nxf4 {[%clk 0:01:39]} 24. Qd2 {[%clk 0:00:48.8]} 24... d5
{[%clk 0:01:23.6]} 25. Ne5 {[%clk 0:00:46.7]} 25... g5 {[%clk 0:01:23.2]} 26.
Nd3 {[%clk 0:00:39.8]} 26... Qd6 {[%clk 0:01:08.4]} 27. Nxf4 {[%clk 0:00:39.4]}
27... gxf4 {[%clk 0:01:02.2]} 28. Rxe8+ {[%clk 0:00:39.3]} 28... Rxe8 {[%clk
0:01:00.9]} 29. Re1 {[%clk 0:00:40.2]} 29... Rxe1+ {[%clk 0:00:55.8]} 30. Qxe1
{[%clk 0:00:41.1]} 30... Kf8 {[%clk 0:00:50.3]} 31. f3 {[%clk 0:00:36.9]} 31...
Qe6 {[%clk 0:00:37.1]} 32. Kf2 {[%clk 0:00:28.1]} 32... Ke7 {[%clk 0:00:33.8]}
33. Qxe6+ {[%clk 0:00:28.2]} 33... Kxe6 {[%clk 0:00:31.5]} 34. g4 {[%clk
0:00:27.3]} 34... fxg3+ {[%clk 0:00:30]} 35. Kxg3 {[%clk 0:00:27.5]} 35... Kf5
{[%clk 0:00:29.9]} 36. Kf2 {[%clk 0:00:20.2]} 36... Kf4 {[%clk 0:00:29.2]} 37.
b3 {[%clk 0:00:18.9]} 37... a5 {[%clk 0:00:26.7]} 38. a3 {[%clk 0:00:17.8]}
38... g5 {[%clk 0:00:23.1]} 39. b4 {[%clk 0:00:13.3]} 39... a4 {[%clk
0:00:20.7]} 40. Ke2 {[%clk 0:00:11.2]} 40... Kg3 {[%clk 0:00:19.9]} 41. Kd3
{[%clk 0:00:11.7]} 41... Kxf3 {[%clk 0:00:18.2]} 42. c4 {[%clk 0:00:12.6]} 42...
dxc4+ {[%clk 0:00:15.7]} 43. Kxc4 {[%clk 0:00:12.6]} 43... f5 {[%clk 0:00:15]}
44. d5 {[%clk 0:00:12.9]} 44... cxd5+ {[%clk 0:00:13.8]} 45. Kxd5 {[%clk
0:00:13.3]} 45... g4 {[%clk 0:00:13.9]} 46. h4 {[%clk 0:00:12.6]} 46... g3
{[%clk 0:00:13.2]} 47. h5 {[%clk 0:00:13.5]} 47... g2 {[%clk 0:00:13.2]} 48. h6
{[%clk 0:00:14.4]} 48... g1=Q {[%clk 0:00:12.4]} 49. h7 {[%clk 0:00:15.3]} 49...
Qh2 {[%clk 0:00:11.9]} 50. h8=Q {[%clk 0:00:16.2]} 50... Qxh8 {[%clk 0:00:11]}
51. Kc5 {[%clk 0:00:12.8]} 51... Qc8+ {[%clk 0:00:10.2]} 52. Kb5 {[%clk
0:00:13]} 52... Qc6+ {[%clk 0:00:09.9]} 53. Ka5 {[%clk 0:00:12.6]} 53... Qa6#
{[%clk 0:00:09.5]} 0-1